fUSD/lending_fUSD_20250420
["ID","MTS","AMOUNT","RATE_DAILY","PERIOD"]
[358442412,1745149879569,-500.0,0.00047945,120]
[358442413,1745149879579,-500.0,0.00047945,120]
[358442414,1745149879588,-500.0,0.00047945,120]
[358442415,1745149879598,-56333.0,0.00048,2]
[358442416,1745149879608,-1068.0,0.00048,30]
[358442417,1745149879618,-292.0,0.00048,120]
[358442418,1745149879627,-200.79772878,0.00048,120]
[358442419,1745149879637,-4566.33569554,0.00048,120]
[358442420,1745149879647,-400.0,0.00048,120]
[358442421,1745149879657,-5995.78658789,0.00048,120]
[358442422,1745149879667,-1092.88244,0.00048,120]
[358442423,1745149879676,-550.00000011,0.00048,30]
[358442424,1745149879685,-175.0,0.00048,120]
[358442425,1745149879695,-1000.0,0.00048,120]
[358442426,1745149879704,-151.41963327,0.00048,120]
[358442427,1745149879714,-856.74,0.00048,42]
[358442428,1745149879723,-856.74,0.00048,42]
[358442429,1745149879733,-856.74,0.00048,42]
[358442430,1745149879742,-856.74,0.00048,42]
[358442431,1745149879752,-856.74,0.00048,42]
[358442432,1745149879761,-856.74,0.00048,42]
[358442433,1745149879771,-856.74,0.00048,42]
[358442434,1745149879781,-856.74,0.00048,42]
[358442435,1745149879791,-856.74,0.00048,42]
[358442436,1745149879801,-856.74,0.00048,42]
[358442437,1745149879811,-856.74,0.00048,42]
[358442438,1745149879820,-856.74,0.00048,42]
[358442439,1745149879829,-2000.0,0.00048121,3]
[358442440,1745149879839,-684.45,0.0004818,2]
[358442441,1745149879848,-150.0,0.00048185,120]
[358442442,1745149879857,-2000.0,0.00048199,3]
[358442443,1745149879866,-2000.0,0.00048199,3]
[358442444,1745149879877,-500.0,0.00048256,30]
[358442445,1745149879886,-500.0,0.00048256,30]
[358442446,1745149879896,-55937.81291,0.0004829,2]
[358442447,1745149879906,-51445.1380832,0.0004829,2]
[358442448,1745149879915,-3079.1344712,0.0004829,2]
[358442449,1745149879924,-2831.8321687,0.0004829,2]
[358442450,1745149879934,-2000.0,0.000483,2]
[358442451,1745149879943,-160.88663131,0.000483,30]
[358442452,1745149879952,-539.52,0.00048332,120]
[358442453,1745149879962,-996.8,0.00048342,30]
[358442454,1745149879971,-155.01950002,0.0004835,2]
[358442455,1745149879980,-753.9,0.00048365,30]
[358442456,1745149879990,-1274.68224529,0.0004837,3]
[358442457,1745149879999,-700.0,0.0004837,3]
[358442458,1745149880009,-700.0,0.0004837,3]
[358442459,1745149880018,-700.0,0.0004837,3]
[358442460,1745149880028,-700.0,0.0004837,3]
[358442461,1745149880037,-700.0,0.0004837,3]
[358442462,1745149880047,-150.0,0.00048385,120]
[358442463,1745149880056,-259.02,0.000484,2]
[358442464,1745149880066,-702.7365,0.000484,2]
[358442465,1745149880075,-622.56,0.00048401,60]
[358442466,1745149880084,-2000.0,0.0004844,30]
[358442467,1745149880094,-306.15756648,0.0004867,3]
[358442468,1745149880103,-150.0,0.00048867,120]
[358442469,1745149880113,-500.0,0.00049,120]
[358442470,1745149880123,-203.3765,0.00049024,120]
[358442471,1745149880132,-150.0,0.00049315,120]
[358442472,1745149880142,-202.01,0.00049315,2]
[358442473,1745149880152,-150.0,0.00049323,120]
[358442474,1745149880161,-638.63,0.00049358,2]
[358442475,1745149880171,-5892.73,0.000494,60]
[358442476,1745149880181,-181.0,0.00049589,60]
[358442477,1745149880190,-181.0,0.00049589,60]
[358442478,1745149880203,-153.0,0.00049589,60]
[358442479,1745149880213,-153.0,0.00049589,60]
[358442480,1745149880222,-153.0,0.00049589,60]
[358442481,1745149880231,-153.0,0.00049589,60]
[358442482,1745149880241,-181.0,0.00049589,60]
[358442483,1745149880250,-181.0,0.00049589,60]
[358442484,1745149880259,-181.0,0.00049589,60]
[358442485,1745149880269,-181.0,0.00049589,60]
[358442486,1745149880279,-181.0,0.00049589,60]
[358442487,1745149880289,-181.0,0.00049589,60]
[358442488,1745149880299,-181.0,0.00049589,60]
[358442489,1745149880308,-181.0,0.00049589,60]
[358442490,1745149880318,-181.0,0.00049589,60]
[358442491,1745149880327,-181.0,0.00049589,60]
[358442492,1745149880337,-181.0,0.00049589,60]
[358442493,1745149880346,-181.0,0.00049589,60]
[358442494,1745149880355,-181.0,0.00049589,60]
[358442495,1745149880365,-181.0,0.00049589,60]
[358442496,1745149880374,-153.0,0.00049589,60]
[358442497,1745149880383,-153.0,0.00049589,60]
[358442498,1745149880393,-153.0,0.00049589,60]
[358442499,1745149880402,-153.0,0.00049589,60]
[358442500,1745149880411,-153.0,0.00049589,60]
[358442501,1745149880420,-153.0,0.00049589,60]
[358442502,1745149880430,-153.0,0.00049589,60]
[358442503,1745149880440,-153.0,0.00049589,60]
[358442504,1745149880449,-181.0,0.00049589,60]
[358442505,1745149880459,-181.0,0.00049589,60]
[358442506,1745149880468,-181.0,0.00049589,60]
[358442507,1745149880477,-181.0,0.00049589,60]
[358442508,1745149880487,-181.0,0.00049589,60]
[358442509,1745149880496,-181.0,0.00049589,60]
[358442510,1745149880505,-181.0,0.00049589,60]
[358442511,1745149880514,-181.0,0.00049589,60]
[358442512,1745149880523,-181.0,0.00049589,60]
[358442513,1745149880532,-181.0,0.00049589,60]
[358442514,1745149880541,-181.0,0.00049589,60]
[358442515,1745149880551,-181.0,0.00049589,60]
[358442516,1745149880560,-181.0,0.00049589,60]
[358442517,1745149880569,-181.0,0.00049589,60]
[358442518,1745149880579,-153.0,0.00049589,60]
[358442519,1745149880588,-153.0,0.00049589,60]
[358442520,1745149880597,-153.0,0.00049589,60]
[358442521,1745149880606,-153.0,0.00049589,60]
[358442522,1745149880616,-153.0,0.00049589,60]
[358442523,1745149880624,-153.0,0.00049589,60]
[358442524,1745149880633,-153.0,0.00049589,60]
[358442525,1745149880642,-153.0,0.00049589,60]
[358442526,1745149880652,-181.0,0.00049589,60]
[358442527,1745149880661,-181.0,0.00049589,60]
[358442528,1745149880669,-181.0,0.00049589,60]
[358442529,1745149880679,-181.0,0.00049589,60]
[358442530,1745149880689,-181.0,0.00049589,60]
[358442531,1745149880698,-181.0,0.00049589,60]
[358442532,1745149880707,-181.0,0.00049589,60]
[358442533,1745149880716,-181.0,0.00049589,60]
[358442534,1745149880726,-181.0,0.00049589,60]
[358442535,1745149880735,-181.0,0.00049589,60]
[358442536,1745149880744,-181.0,0.00049589,60]
[358442537,1745149880753,-181.0,0.00049589,60]
[358442538,1745149880762,-181.0,0.00049589,60]
[358442539,1745149880772,-181.0,0.00049589,60]
[358442540,1745149880782,-153.0,0.00049589,60]
[358442541,1745149880793,-153.0,0.00049589,60]
[358442542,1745149880802,-153.0,0.00049589,60]
[358442543,1745149880812,-153.0,0.00049589,60]
[358442544,1745149880821,-153.0,0.00049589,60]
[358442545,1745149880830,-153.0,0.00049589,60]
[358442546,1745149880839,-153.0,0.00049589,60]
[358442547,1745149880849,-153.0,0.00049589,60]
[358442548,1745149880858,-181.0,0.00049589,60]
[358442549,1745149880867,-181.0,0.00049589,60]
[358442550,1745149880876,-181.0,0.00049589,60]
[358442551,1745149880933,-181.0,0.00049589,60]
[358442552,1745149880942,-181.0,0.00049589,60]
[358442553,1745149880951,-181.0,0.00049589,60]
[358442554,1745149880960,-181.0,0.00049589,60]
[358442555,1745149880969,-181.0,0.00049589,60]
[358442556,1745149880978,-181.0,0.00049589,60]
[358442557,1745149880987,-181.0,0.00049589,60]
[358442558,1745149880996,-181.0,0.00049589,60]
[358442559,1745149881006,-181.0,0.00049589,60]
[358442560,1745149881015,-181.0,0.00049589,60]
[358442561,1745149881024,-181.0,0.00049589,60]
[358442562,1745149881033,-153.0,0.00049589,60]
[358442563,1745149881042,-153.0,0.00049589,60]
[358442564,1745149881052,-153.0,0.00049589,60]
[358442565,1745149881060,-153.0,0.00049589,60]
[358442566,1745149881069,-153.0,0.00049589,60]
[358442567,1745149881078,-153.0,0.00049589,60]
[358442568,1745149881087,-153.0,0.00049589,60]
[358442569,1745149881096,-153.0,0.00049589,60]
[358442570,1745149881105,-181.0,0.00049589,60]
[358442571,1745149881114,-181.0,0.00049589,60]
[358442572,1745149881123,-181.0,0.00049589,60]
[358442573,1745149881133,-181.0,0.00049589,60]
[358442574,1745149881142,-181.0,0.00049589,60]
[358442575,1745149881151,-181.0,0.00049589,60]
[358442576,1745149881160,-181.0,0.00049589,60]
[358442577,1745149881169,-181.0,0.00049589,60]
[358442578,1745149881178,-181.0,0.00049589,60]
[358442579,1745149881187,-181.0,0.00049589,60]
[358442580,1745149881200,-181.0,0.00049589,60]
[358442581,1745149881210,-181.0,0.00049589,60]
[358442582,1745149881219,-181.0,0.00049589,60]
[358442583,1745149881230,-181.0,0.00049589,60]
[358442584,1745149881242,-181.0,0.00049589,60]
[358442585,1745149881251,-181.0,0.00049589,60]
[358442586,1745149881261,-181.0,0.00049589,60]
[358442587,1745149881271,-181.0,0.00049589,60]
[358442588,1745149881280,-181.0,0.00049589,60]
[358442589,1745149881290,-181.0,0.00049589,60]
[358442590,1745149881299,-153.0,0.00049589,60]
[358442591,1745149881309,-153.0,0.00049589,60]
[358442592,1745149881319,-153.0,0.00049589,60]
[358442593,1745149881328,-153.0,0.00049589,60]
[358442594,1745149881337,-153.0,0.00049589,60]
[358442595,1745149881347,-153.0,0.00049589,60]
[358442596,1745149881356,-153.0,0.00049589,60]
[358442597,1745149881365,-153.0,0.00049589,60]
[358442598,1745149881373,-153.0,0.00049589,60]
[358442599,1745149881383,-210.63844901,0.000498,30]
[358442600,1745149881392,-5892.73,0.000499,60]
[358442601,1745149881400,-1000.0,0.00049999,120]
[358442602,1745149881409,-438.08611306,0.00049999,7]
[358442603,1745149881419,-384.63540329,0.00049999,120]
[358442604,1745149881427,-413.11232472,0.00049999,120]
[358442605,1745149881436,-489.19651264,0.00049999,120]
[358442606,1745149881445,-500.0,0.00049999,2]
[358442607,1745149881454,-277.67308628,0.00049999,2]
[358442608,1745149881463,-410.75304612,0.00049999,120]
[358442609,1745149881472,-432.19917157,0.00049999,120]
[358442610,1745149881481,-408.45154134,0.00049999,31]
[358442611,1745149881490,-470.34312095,0.00049999,120]
[358442612,1745149881499,-558.53498259,0.00049999,120]
[358442613,1745149881508,-558.53498259,0.00049999,120]
[358442614,1745149881517,-558.53498259,0.00049999,120]
[358442615,1745149881527,-558.53498259,0.00049999,120]
[358442616,1745149881537,-558.53498259,0.00049999,120]
[358442617,1745149881547,-558.53498259,0.00049999,120]
[358442618,1745149881557,-558.53498259,0.00049999,120]
[358442619,1745149881566,-558.53498259,0.00049999,120]
[358442620,1745149881576,-558.53498259,0.00049999,120]
[358442621,1745149881585,-558.53498259,0.00049999,120]
[358442622,1745149881594,-558.53498259,0.00049999,120]
[358442623,1745149881603,-558.53498259,0.00049999,120]
[358442624,1745149881613,-558.53498259,0.00049999,120]
[358442625,1745149881622,-558.53498259,0.00049999,120]
[358442626,1745149881631,-558.53498259,0.00049999,120]
[358442627,1745149881640,-558.53498259,0.00049999,120]
[358442628,1745149881650,-558.53498259,0.00049999,120]
[358442629,1745149881659,-558.53498259,0.00049999,120]
[358442630,1745149881668,-558.53498259,0.00049999,120]
[358442631,1745149881677,-558.53498259,0.00049999,120]
[358442632,1745149881686,-558.53498259,0.00049999,120]
[358442633,1745149881695,-558.53498259,0.00049999,120]
[358442634,1745149881704,-558.53498259,0.00049999,120]
[358442635,1745149881713,-558.53498259,0.00049999,120]
[358442636,1745149881722,-558.53498259,0.00049999,120]
[358442637,1745149881731,-558.53498259,0.00049999,120]
[358442638,1745149881740,-558.53498259,0.00049999,120]
[358442639,1745149881749,-558.53498259,0.00049999,120]
[358442640,1745149881758,-558.53498259,0.00049999,120]
[358442641,1745149881768,-558.53498259,0.00049999,120]
[358442642,1745149881777,-558.53498259,0.00049999,120]
[358442643,1745149881786,-558.53498259,0.00049999,120]
[358442644,1745149881795,-558.53498259,0.00049999,120]
[358442645,1745149881804,-558.53498259,0.00049999,120]
[358442646,1745149881813,-558.53498259,0.00049999,120]
[358442647,1745149881822,-558.53498259,0.00049999,120]
[358442648,1745149881831,-558.53498259,0.00049999,120]
[358442649,1745149881840,-558.53498259,0.00049999,120]
[358442650,1745149881849,-558.53498259,0.00049999,120]
[358442651,1745149881858,-558.53498259,0.00049999,120]
[358442652,1745149881867,-558.53498259,0.00049999,120]
[358442653,1745149881876,-558.53498259,0.00049999,120]
[358442654,1745149881886,-558.53498259,0.00049999,120]
[358442655,1745149881895,-558.53498259,0.00049999,120]
[358442656,1745149881904,-558.53498259,0.00049999,120]
[358442657,1745149881913,-558.53498259,0.00049999,120]
[358442658,1745149881922,-558.53498259,0.00049999,120]
[358442659,1745149881931,-558.53498259,0.00049999,120]
[358442660,1745149881939,-558.53498259,0.00049999,120]
[358442661,1745149881948,-558.53498259,0.00049999,120]
[358442662,1745149881957,-558.53498259,0.00049999,120]
[358442663,1745149881966,-558.53498259,0.00049999,120]
[358442664,1745149881976,-558.53498259,0.00049999,120]
[358442665,1745149881985,-558.53498259,0.00049999,120]
[358442666,1745149881994,-558.53498259,0.00049999,120]
[358442667,1745149882003,-543.02012198,0.00049999,120]
[358442668,1745149882013,-543.02012198,0.00049999,120]
[358442669,1745149882021,-543.02012198,0.00049999,120]
[358442670,1745149882030,-543.02012198,0.00049999,120]
[358442671,1745149882039,-543.02012198,0.00049999,120]
[358442672,1745149882048,-543.02012198,0.00049999,120]
[358442673,1745149882057,-543.02012198,0.00049999,120]
[358442674,1745149882066,-543.02012198,0.00049999,120]
[358442675,1745149882075,-543.02012198,0.00049999,120]
[358442676,1745149882084,-543.02012198,0.00049999,120]
[358442677,1745149882093,-543.02012198,0.00049999,120]
[358442678,1745149882101,-543.02012198,0.00049999,120]
[358442679,1745149882111,-543.02012198,0.00049999,120]
[358442680,1745149882120,-543.02012198,0.00049999,120]
[358442681,1745149882130,-543.02012198,0.00049999,120]
[358442682,1745149882140,-543.02012198,0.00049999,120]
[358442683,1745149882149,-543.02012198,0.00049999,120]
[358442684,1745149882157,-543.02012192,0.00049999,120]
[358442685,1745149882167,-578.13321956,0.00049999,120]
[358442686,1745149882176,-151.9863552,0.0005,14]
[358442687,1745149882185,-200.0,0.0005,81]
[358442688,1745149882196,-1324.63078407,0.0005,120]
[358442689,1745149882206,-293.703084,0.0005,120]
[358442690,1745149882216,-350.0,0.0005,90]
[358442691,1745149882225,-1031.0,0.0005,120]
[358442692,1745149882234,-154.96128447,0.0005,30]
[358442693,1745149882245,-524.12566042,0.0005,120]
[358442694,1745149882254,-1177.5960942,0.0005,2]
[358442695,1745149882263,-1230.61,0.0005,120]
[358442696,1745149882273,-700.0,0.0005,120]
[358442697,1745149882283,-501.0,0.0005,120]
[358442698,1745149882293,-393.0,0.0005,120]
[358442699,1745149882302,-1102.31475887,0.0005,120]
[358442700,1745149882311,-300.0,0.0005,120]
[358442701,1745149882320,-596.95052455,0.0005,10]
[358442702,1745149882329,-5892.73,0.000504,60]
[358442703,1745149882339,-150.0,0.00050684,120]
[358442704,1745149882349,-777.08,0.000508,7]
[358442705,1745149882358,-5892.73,0.000509,60]
[358442706,1745149882368,-150.0,0.00050979,120]
[358442707,1745149882377,-1631.73,0.00051,120]
[358442708,1745149882387,-200.0,0.00051,85]
[358442709,1745149882396,-150.0,0.00051084,120]
[358442710,1745149882406,-2000.0,0.000511,2]
[358442711,1745149882415,-452.89,0.00051329,30]
[358442712,1745149882424,-905.78,0.00051329,30]
[358442713,1745149882433,-1592.64,0.00051329,30]
[358442714,1745149882442,-452.89,0.00051329,30]
[358442715,1745149882452,-796.32,0.00051329,30]
[358442716,1745149882461,-150.0,0.00051367,120]
[358442717,1745149882470,-638.63,0.00051622,2]
[358442718,1745149882479,-600.0,0.000518,60]
[358442719,1745149882488,-150.0,0.00051867,120]
[358442720,1745149882497,-1000.0,0.00051999,120]
[358442721,1745149882507,-200.0,0.00052,89]
[358442722,1745149882517,-624.75190597,0.00052,30]
[358442723,1745149882526,-501.0,0.00052,120]
[358442724,1745149882536,-150.0,0.00052054,120]
[358442725,1745149882545,-533.7,0.000522,90]
[358442726,1745149882555,-796.32,0.00052288,30]
[358442727,1745149882564,-452.89,0.00052288,30]
[358442728,1745149882573,-452.89,0.00052288,30]
[358442729,1745149882582,-796.32,0.00052288,30]
[358442730,1745149882591,-796.32,0.00052288,30]
[358442731,1745149882600,-452.89,0.00052288,30]
[358442732,1745149882610,-796.32,0.00052288,30]
[358442733,1745149882619,-452.89,0.00052288,30]
[358442734,1745149882629,-452.89,0.00052288,30]
[358442735,1745149882639,-796.32,0.00052288,30]
[358442736,1745149882648,-796.32,0.00052288,30]
[358442737,1745149882658,-452.89,0.00052288,30]
[358442738,1745149882667,-452.89,0.00052288,30]
[358442739,1745149882676,-796.32,0.00052288,30]
[358442740,1745149882684,-796.32,0.00052288,30]
[358442741,1745149882692,-452.89,0.00052288,30]
[358442742,1745149882700,-452.89,0.00052288,30]
[358442743,1745149882708,-796.32,0.00052288,30]
[358442744,1745149882717,-796.32,0.00052288,30]
[358442745,1745149882725,-452.89,0.00052288,30]
[358442746,1745149882734,-796.32,0.00052288,30]
[358442747,1745149882742,-452.89,0.00052288,30]
[358442748,1745149882752,-796.32,0.00052288,30]
[358442749,1745149882763,-452.89,0.00052288,30]
[358442750,1745149882773,-796.32,0.00052288,30]
[358442751,1745149882784,-452.89,0.00052288,30]
[358442752,1745149882795,-452.89,0.00052288,30]
[358442753,1745149882806,-796.32,0.00052288,30]
[358442754,1745149882816,-796.32,0.00052288,30]
[358442755,1745149882826,-452.89,0.00052288,30]
[358442756,1745149882836,-452.89,0.00052288,30]
[358442757,1745149882844,-796.32,0.00052288,30]
[358442758,1745149882854,-452.89,0.00052288,30]
[358442759,1745149882863,-796.32,0.00052288,30]
[358442760,1745149882872,-796.32,0.00052288,30]
[358442761,1745149882884,-452.89,0.00052288,30]
[358442762,1745149882894,-452.89,0.00052288,30]
[358442763,1745149882905,-796.32,0.00052288,30]
[358442764,1745149882915,-1303.74,0.00052288,30]
[358442765,1745149882925,-695.94,0.00052288,30]
[358442766,1745149882932,-160.82,0.00052288,30]
[358442767,1745149882939,-445.0,0.00052288,30]
[358442768,1745149882945,-150.0,0.00052288,30]
[358442769,1745149882952,-348.14,0.00052288,30]
[358442770,1745149882960,-150.0,0.00052288,30]
[358442771,1745149882969,-1444.68,0.000525,120]
[358442772,1745149882979,-1603.5393837,0.000528,120]
[358442773,1745149882988,-200.0,0.00052856,2]
[358442774,1745149882997,-200.0,0.00053,92]
[358442775,1745149883006,-576.47177024,0.00053,2]
[358442776,1745149883015,-200.0,0.00053,120]
[358442777,1745149883024,-600.0,0.00053,120]
[358442778,1745149883033,-3395.53,0.00053,60]
[358442779,1745149883041,-150.0,0.00053013,120]
[358442780,1745149883049,-150.0,0.00053109,120]
[358442781,1745149883057,-703.13919845,0.000532,2]
[358442782,1745149883066,-446.86333887,0.0005331,2]
[358442783,1745149883074,-2000.0,0.00053372,10]
[358442784,1745149883083,-500.0,0.00053424,30]
[358442785,1745149883092,-150.0,0.00053424,120]
[358442786,1745149883100,-2000.0,0.000538,2]
[358442787,1745149883111,-638.63,0.00053885,2]
[358442788,1745149883122,-500.0,0.00053972,32]
[358442789,1745149883132,-200.0,0.00054,96]
[358442790,1745149883141,-659.3332454,0.00054,30]
[358442791,1745149883151,-501.0,0.00054,120]
[358442792,1745149883160,-200.0,0.00054,120]
[358442793,1745149883168,-150.0,0.0005422,120]
[358442794,1745149883177,-1392.0,0.000545,120]
[358442795,1745149883187,-151.82967397,0.000545,2]
[358442796,1745149883200,-500.0,0.0005452,34]
[358442797,1745149883211,-1000.0,0.0005452,120]
[358442798,1745149883220,-2381.17528134,0.0005454,6]
[358442799,1745149883230,-5800.0,0.00054752,21]
[358442800,1745149883240,-5800.0,0.0005476,21]
[358442801,1745149883249,-5800.0,0.00054769,21]
[358442802,1745149883258,-5800.0,0.00054777,21]
[358442803,1745149883268,-5800.0,0.00054786,21]
[358442804,1745149883277,-5800.0,0.00054786,21]
[358442805,1745149883287,-500.0,0.00054794,120]
[358442806,1745149883297,-500.0,0.00054794,120]
[358442807,1745149883307,-5606.91741684,0.00054794,21]
[358442808,1745149883316,-5800.0,0.00054794,21]
[358442809,1745149883325,-5800.0,0.00054794,21]
[358442810,1745149883335,-500.0,0.00054794,30]
[358442811,1745149883344,-500.0,0.00054794,30]
[358442812,1745149883353,-500.0,0.00054794,30]
[358442813,1745149883362,-500.0,0.00054794,30]
[358442814,1745149883372,-500.0,0.00054794,30]
[358442815,1745149883381,-500.0,0.00054794,30]
[358442816,1745149883391,-425.85884129,0.00054794,30]
[358442817,1745149883400,-660.37,0.00054794,120]
[358442818,1745149883410,-1017.05692243,0.00054794,120]
[358442819,1745149883419,-617.66479909,0.00054794,30]
[358442820,1745149883429,-150.0,0.00054794,120]
[358442821,1745149883438,-500.0,0.00054794,120]
[358442822,1745149883447,-500.0,0.00054794,120]
[358442823,1745149883456,-500.0,0.00054794,120]
[358442824,1745149883465,-500.0,0.00054794,120]
[358442825,1745149883475,-500.0,0.00054794,120]
[358442826,1745149883484,-500.0,0.00054794,120]
[358442827,1745149883494,-500.0,0.00054794,120]
[358442828,1745149883503,-500.0,0.00054794,120]
[358442829,1745149883512,-500.0,0.00054794,120]
[358442830,1745149883521,-500.0,0.00054794,120]
[358442831,1745149883530,-500.0,0.00054794,120]
[358442832,1745149883540,-500.0,0.00054794,120]
[358442833,1745149883549,-500.0,0.00054794,120]
[358442834,1745149883559,-277.33685735,0.00054794,120]
[358442835,1745149883568,-1013.50743276,0.00054794,120]
[358442836,1745149883577,-655.03,0.00054794,30]
[358442837,1745149883585,-655.03,0.00054794,30]
[358442838,1745149883594,-655.03,0.00054794,30]
[358442839,1745149883602,-655.03,0.00054794,30]
[358442840,1745149883611,-655.03,0.00054794,30]
[358442841,1745149883620,-655.03,0.00054794,30]
[358442842,1745149883629,-655.03,0.00054794,30]
[358442843,1745149883639,-655.03,0.00054794,30]
[358442844,1745149883649,-655.03,0.00054794,30]
[358442845,1745149883658,-655.03,0.00054794,30]
[358442846,1745149883668,-655.03,0.00054794,30]
[358442847,1745149883677,-655.03,0.00054794,30]
[358442848,1745149883687,-655.03,0.00054794,30]
[358442849,1745149883696,-655.03,0.00054794,30]
[358442850,1745149883705,-655.03,0.00054794,30]
[358442851,1745149883715,-655.03,0.00054794,30]
[358442852,1745149883724,-655.03,0.00054794,30]
[358442853,1745149883733,-655.03,0.00054794,30]
[358442854,1745149883742,-655.03,0.00054794,30]
[358442855,1745149883750,-655.03,0.00054794,30]
[358442856,1745149883758,-655.03,0.00054794,30]
[358442857,1745149883765,-655.03,0.00054794,30]
[358442858,1745149883775,-655.03,0.00054794,30]
[358442859,1745149883784,-655.15551612,0.00054794,30]
[358442860,1745149883793,-552.05539893,0.00054794,120]
[358442861,1745149883803,-234.61359466,0.00054794,120]
[358442862,1745149883812,-500.0,0.00054794,120]
[358442863,1745149883821,-500.0,0.00054794,120]
[358442864,1745149883830,-500.0,0.00054794,120]
[358442865,1745149883839,-171.62970211,0.00054794,120]
[358442866,1745149883848,-500.0,0.00054794,120]
[358442867,1745149883856,-500.0,0.00054794,120]
[358442868,1745149883865,-620.43482159,0.00054794,120]
[358442869,1745149883874,-380.84557505,0.00054794,120]
[358442870,1745149883885,-1000.0,0.00054794,120]
[358442871,1745149883894,-208.65,0.00054795,60]
[358442872,1745149883901,-151.0,0.00054795,120]
[358442873,1745149883909,-151.0,0.00054795,120]
[358442874,1745149883916,-151.0,0.00054795,120]
[358442875,1745149883924,-151.0,0.00054795,120]
[358442876,1745149883933,-210.499079,0.00054795,120]
[358442877,1745149883943,-151.0,0.00054795,120]
[358442878,1745149883952,-158.534582,0.00054795,120]
[358442879,1745149883961,-500.0,0.00054795,2]
[358442880,1745149883970,-569.77728717,0.00054795,120]
[358442881,1745149883979,-500.0,0.00054795,120]
[358442882,1745149883988,-500.0,0.00054795,120]
[358442883,1745149883997,-329.48033672,0.00054795,120]
[358442884,1745149884007,-353.26429334,0.00054795,120]
[358442885,1745149884016,-162.06569459,0.000548,120]
[358442886,1745149884025,-49168.72743624,0.000548,120]
[358442887,1745149884035,-3861.7379091,0.00054806,30]
[358442888,1745149884044,-1958.05,0.00054821,120]
[358442889,1745149884054,-1958.05,0.00054821,120]
[358442890,1745149884063,-1958.05,0.00054821,120]
[358442891,1745149884073,-1958.05,0.00054821,120]
[358442892,1745149884082,-1958.05,0.00054821,120]
[358442893,1745149884091,-1958.05,0.00054821,120]
[358442894,1745149884100,-1958.05,0.00054821,120]
[358442895,1745149884109,-1958.05,0.00054821,120]
[358442896,1745149884118,-1958.05,0.00054821,120]
[358442897,1745149884127,-1958.05,0.00054821,120]
[358442898,1745149884136,-1958.05,0.00054821,120]
[358442899,1745149884145,-1958.05,0.00054821,120]
[358442900,1745149884154,-1958.05,0.00054821,120]
[358442901,1745149884163,-1958.05,0.00054821,120]
[358442902,1745149884172,-1958.05,0.00054821,120]
[358442903,1745149884181,-1958.05,0.00054821,120]
[358442904,1745149884190,-1958.05,0.00054821,120]
[358442905,1745149884206,-1958.05,0.00054821,120]
[358442906,1745149884216,-1958.05,0.00054821,120]
[358442907,1745149884225,-1958.05,0.00054821,120]
[358442908,1745149884235,-1958.05,0.00054821,120]
[358442909,1745149884244,-1958.05,0.00054821,120]
[358442910,1745149884254,-1958.05,0.00054821,120]
[358442911,1745149884263,-1958.2561285,0.00054821,120]